[Event "*** Titled Tuesday Blitz"]
[Site "Chess.com"]
[Date "2020.05.19"]
[Round "2"]
[White "anon569"]
[Black "mortngabriel"]
[Result "0-1"]
[WhiteElo "2256"]
[BlackElo "2461"]
[TimeControl "180+1"]
[EndTime "12:18:40 PDT"]
[Termination "mortngabriel won on time"]

1. e4 {[%clk 0:03:00.9]} 1... c5 {[%clk 0:02:59.5]} 2. Nf3 {[%clk 0:03:00.6]}
2... a6 {[%clk 0:02:59.7]} 3. d4 {[%clk 0:03:01]} 3... cxd4 {[%clk 0:03:00.6]}
4. Nxd4 {[%clk 0:03:00.5]} 4... Nf6 {[%clk 0:03:01.1]} 5. f3 {[%clk 0:02:57.6]}
5... e5 {[%clk 0:03:00.5]} 6. Nb3 {[%clk 0:02:53.2]} 6... d5 {[%clk 0:03:00.9]}
7. exd5 {[%clk 0:02:50.1]} 7... Qxd5 {[%clk 0:03:01.8]} 8. Bd3 {[%clk 0:02:38]}
8... Nc6 {[%clk 0:02:47.9]} 9. Nc3 {[%clk 0:02:33.6]} 9... Bb4 {[%clk
0:02:46.9]} 10. Bd2 {[%clk 0:02:32.2]} 10... Qd8 {[%clk 0:02:16.7]} 11. a3
{[%clk 0:02:13.2]} 11... Be7 {[%clk 0:02:14]} 12. Be3 {[%clk 0:01:53]} 12... O-O
{[%clk 0:02:09.9]} 13. Qd2 {[%clk 0:01:36.5]} 13... b6 {[%clk 0:01:47]} 14.
O-O-O {[%clk 0:01:32.7]} 14... Be6 {[%clk 0:01:46.6]} 15. Qf2 {[%clk 0:01:31.7]}
15... Nd7 {[%clk 0:01:19.2]} 16. Be4 {[%clk 0:01:13.5]} 16... Rc8 {[%clk
0:01:17]} 17. g4 {[%clk 0:00:25]} 17... b5 {[%clk 0:01:14.9]} 18. Nd5 {[%clk
0:00:23.5]} 18... Bg5 {[%clk 0:01:06.3]} 19. h4 {[%clk 0:00:22.6]} 19... Bxe3+
{[%clk 0:01:05.5]} 20. Qxe3 {[%clk 0:00:22.9]} 20... a5 {[%clk 0:00:54.7]} 21.
Kb1 {[%clk 0:00:19.3]} 21... a4 {[%clk 0:00:54.5]} 22. Nc1 {[%clk 0:00:18.8]}
22... Na5 {[%clk 0:00:32.6]} 23. g5 {[%clk 0:00:15.5]} 23... Nc4 {[%clk
0:00:32.6]} 24. Qf2 {[%clk 0:00:14]} 24... Qa5 {[%clk 0:00:25]} 25. Na2 {[%clk
0:00:13.8]} 25... Bxd5 {[%clk 0:00:17.2]} 26. Nb4 {[%clk 0:00:14.3]} 26... Bxe4
{[%clk 0:00:16.9]} 27. Rxd7 {[%clk 0:00:08]} 27... Bf5 {[%clk 0:00:16.9]} 28.
Rdd1 {[%clk 0:00:05.8]} 28... Qc7 {[%clk 0:00:11.7]} 29. Rhe1 {[%clk 0:00:04.2]}
29... Rfd8 {[%clk 0:00:11]} 30. Ka1 {[%clk 0:00:02.7]} 30... Rxd1+ {[%clk
0:00:09.9]} 31. Rxd1 {[%clk 0:00:03.2]} 31... Rd8 {[%clk 0:00:10.8]} 32. Rxd8+
{[%clk 0:00:02.9]} 32... Qxd8 {[%clk 0:00:10.7]} 33. Qc5 {[%clk 0:00:03.1]}
33... h6 {[%clk 0:00:07.3]} 0-1

[Event "*** Titled Tuesday Blitz"]
[Site "Chess.com"]
[Date "2020.05.19"]
[Round "2"]
[White "Radzio1987"]
[Black "stoleriu"]
[Result "1-0"]
[WhiteElo "2899"]
[BlackElo "2552"]
[TimeControl "180+1"]
[EndTime "12:18:41 PDT"]
[Termination "Radzio1987 won by resignation"]

1. c4 {[%clk 0:03:00.9]} 1... e5 {[%clk 0:02:59.8]} 2. Nc3 {[%clk 0:03:00.8]}
2... Nc6 {[%clk 0:02:58.3]} 3. Nf3 {[%clk 0:03:00.2]} 3... f5 {[%clk 0:02:57.7]}
4. d4 {[%clk 0:02:58.3]} 4... e4 {[%clk 0:02:57.7]} 5. d5 {[%clk 0:02:49.5]}
5... exf3 {[%clk 0:02:40.1]} 6. dxc6 {[%clk 0:02:49]} 6... fxg2 {[%clk
0:02:19.2]} 7. cxd7+ {[%clk 0:02:48.9]} 7... Qxd7 {[%clk 0:02:20.1]} 8. Qxd7+
{[%clk 0:02:39.5]} 8... Bxd7 {[%clk 0:02:21]} 9. Bxg2 {[%clk 0:02:39.9]} 9... c6
{[%clk 0:02:21.4]} 10. Be3 {[%clk 0:02:40.4]} 10... Nf6 {[%clk 0:02:13.8]} 11.
O-O-O {[%clk 0:02:34.5]} 11... Be6 {[%clk 0:02:12.6]} 12. b3 {[%clk 0:02:30.5]}
12... Be7 {[%clk 0:02:06.3]} 13. h3 {[%clk 0:02:10.7]} 13... Kf7 {[%clk
0:01:57.3]} 14. Kc2 {[%clk 0:02:10.9]} 14... h6 {[%clk 0:01:46]} 15. Na4 {[%clk
0:02:04.2]} 15... g5 {[%clk 0:01:16.8]} 16. Nc5 {[%clk 0:01:48.8]} 16... f4
{[%clk 0:01:12]} 17. Bd4 {[%clk 0:01:48.6]} 17... Bf5+ {[%clk 0:01:03]} 18. Kb2
{[%clk 0:01:47.6]} 18... Bxc5 {[%clk 0:00:29.5]} 19. Bxc5 {[%clk 0:01:47.5]}
19... Rhe8 {[%clk 0:00:30.4]} 20. e3 {[%clk 0:01:35.6]} 20... Be4 {[%clk
0:00:24.8]} 21. f3 {[%clk 0:01:27.5]} 21... Bf5 {[%clk 0:00:19.1]} 22. e4 {[%clk
0:01:23.3]} 22... Be6 {[%clk 0:00:19.4]} 23. h4 {[%clk 0:01:23.8]} 23... g4
{[%clk 0:00:18.5]} 24. fxg4 {[%clk 0:01:22.7]} 24... Bxg4 {[%clk 0:00:19.4]} 25.
Rdf1 {[%clk 0:01:22.3]} 25... Rad8 {[%clk 0:00:18]} 26. Kc2 {[%clk 0:01:09.5]}
26... Nh5 {[%clk 0:00:14.9]} 27. Be3 {[%clk 0:01:06]} 27... Be2 {[%clk
0:00:12.2]} 28. Rf2 {[%clk 0:01:02.2]} 28... Bd3+ {[%clk 0:00:12.7]} 29. Kb2
{[%clk 0:00:58.6]} 29... Bxe4 {[%clk 0:00:13.6]} 30. Bxf4 {[%clk 0:00:58.8]}
30... Bxg2 {[%clk 0:00:11.9]} 31. Bc7+ {[%clk 0:00:57.8]} 31... Ke6 {[%clk
0:00:05.7]} 32. Rxg2 {[%clk 0:00:57.4]} 32... Rd7 {[%clk 0:00:03.4]} 33. Re1+
{[%clk 0:00:56.7]} 33... Kf7 {[%clk 0:00:03.9]} 34. Rf2+ {[%clk 0:00:56.9]}
34... Nf6 {[%clk 0:00:04.3]} 35. Rxe8 {[%clk 0:00:49.8]} 35... Kxe8 {[%clk
0:00:04.4]} 36. Rxf6 {[%clk 0:00:50]} 36... Rxc7 {[%clk 0:00:05.1]} 37. Rxh6
{[%clk 0:00:50.2]} 37... Rg7 {[%clk 0:00:04.6]} 38. Kc3 {[%clk 0:00:48.6]} 38...
Rg3+ {[%clk 0:00:04.2]} 39. Kb4 {[%clk 0:00:47.7]} 39... Rg7 {[%clk 0:00:03.8]}
40. a4 {[%clk 0:00:47.8]} 40... Kd7 {[%clk 0:00:04.3]} 41. a5 {[%clk 0:00:48.2]}
41... Kc7 {[%clk 0:00:04.4]} 42. h5 {[%clk 0:00:47]} 42... b6 {[%clk 0:00:03.3]}
43. a6 {[%clk 0:00:47.4]} 43... c5+ {[%clk 0:00:03.1]} 44. Kb5 {[%clk
0:00:47.8]} 44... Rg3 {[%clk 0:00:02.3]} 45. Rh7+ {[%clk 0:00:48]} 45... Kd6
{[%clk 0:00:02.9]} 46. Ka4 {[%clk 0:00:46.4]} 46... Rg1 {[%clk 0:00:02.6]} 47.
Rxa7 {[%clk 0:00:45.9]} 47... Ra1+ {[%clk 0:00:02.8]} 48. Kb5 {[%clk 0:00:46.1]}
48... Ke5 {[%clk 0:00:01.7]} 49. Kxb6 {[%clk 0:00:44.7]} 49... Kd4 {[%clk
0:00:02.1]} 50. Rd7+ {[%clk 0:00:41.8]} 50... Kc3 {[%clk 0:00:02.1]} 51. a7
{[%clk 0:00:41.8]} 51... Kxb3 {[%clk 0:00:03]} 52. Kxc5 {[%clk 0:00:41.7]} 52...
Ra5+ {[%clk 0:00:02.4]} 1-0

[Event "*** Titled Tuesday Blitz"]
[Site "Chess.com"]
[Date "2020.05.19"]
[Round "2"]
[White "tarantul1"]
[Black "chito89"]
[Result "0-1"]
[WhiteElo "2488"]
[BlackElo "2731"]
[TimeControl "180+1"]
[EndTime "12:18:41 PDT"]
[Termination "chito89 won on time"]

1. e4 {[%clk 0:03:00.9]} 1... g6 {[%clk 0:02:54]} 2. d4 {[%clk 0:03:00.5]} 2...
Bg7 {[%clk 0:02:53.7]} 3. Nc3 {[%clk 0:03:00.3]} 3... d6 {[%clk 0:02:53.2]} 4.
f4 {[%clk 0:03:00.3]} 4... c6 {[%clk 0:02:45.8]} 5. Nf3 {[%clk 0:02:54.1]} 5...
Qb6 {[%clk 0:02:43.6]} 6. e5 {[%clk 0:01:49.2]} 6... Bg4 {[%clk 0:02:30.5]} 7.
h3 {[%clk 0:01:09.1]} 7... Bxf3 {[%clk 0:02:29.1]} 8. Qxf3 {[%clk 0:01:10]} 8...
Qxd4 {[%clk 0:02:13.6]} 9. Be3 {[%clk 0:01:09.9]} 9... Qb4 {[%clk 0:02:13.9]}
10. O-O-O {[%clk 0:01:09.9]} 10... dxe5 {[%clk 0:01:45.6]} 11. a3 {[%clk
0:01:04.2]} 11... Qa5 {[%clk 0:01:40.4]} 12. Bc4 {[%clk 0:00:51.1]} 12... f5
{[%clk 0:01:03.7]} 13. fxe5 {[%clk 0:00:43]} 13... Bxe5 {[%clk 0:01:04.6]} 14.
Rhe1 {[%clk 0:00:20.9]} 14... Nd7 {[%clk 0:00:34.1]} 15. Bd4 {[%clk 0:00:05.7]}
15... Ngf6 {[%clk 0:00:33.7]} 16. Bxe5 {[%clk 0:00:02.9]} 16... Nxe5 {[%clk
0:00:34.6]} 17. Qe3 {[%clk 0:00:03.5]} 17... Nfd7 {[%clk 0:00:23]} 18. Rxd7
{[%clk 0:00:03.2]} 18... Kxd7 {[%clk 0:00:23.9]} 19. Qxe5 {[%clk 0:00:02]} 19...
Qxe5 {[%clk 0:00:24.8]} 20. Rxe5 {[%clk 0:00:02.6]} 20... Rhf8 {[%clk
0:00:19.7]} 21. Ne2 {[%clk 0:00:02.4]} 21... Rf6 {[%clk 0:00:17.8]} 22. Nf4
{[%clk 0:00:02.2]} 22... Kd6 {[%clk 0:00:17.5]} 23. Re3 {[%clk 0:00:01.1]} 23...
e5 {[%clk 0:00:17.6]} 24. Ne2 {[%clk 0:00:01.9]} 24... e4 {[%clk 0:00:15.4]} 25.
b4 {[%clk 0:00:01.1]} 25... Ke5 {[%clk 0:00:15.2]} 26. Rc3 {[%clk 0:00:01.5]}
26... f4 {[%clk 0:00:14]} 27. Bb3 {[%clk 0:00:02.4]} 27... b6 {[%clk 0:00:11.7]}
28. g3 {[%clk 0:00:02.5]} 28... f3 {[%clk 0:00:11.1]} 29. Nf4 {[%clk 0:00:02.7]}
29... g5 {[%clk 0:00:09.5]} 30. Nh5 {[%clk 0:00:02.6]} 30... f2 {[%clk
0:00:09.4]} 31. Bc4 {[%clk 0:00:02.8]} 31... f1=Q+ {[%clk 0:00:09.6]} 32. Bxf1
{[%clk 0:00:03.5]} 32... Rxf1+ {[%clk 0:00:10.2]} 33. Kb2 {[%clk 0:00:04.4]}
33... Rd8 {[%clk 0:00:09.9]} 34. Rxc6 {[%clk 0:00:04.1]} 34... e3 {[%clk
0:00:09.7]} 35. g4 {[%clk 0:00:03.6]} 35... e2 {[%clk 0:00:09.1]} 36. Ng7 {[%clk
0:00:03.2]} 36... Rd6 {[%clk 0:00:07.8]} 0-1

[Event "*** Titled Tuesday Blitz"]
[Site "Chess.com"]
[Date "2020.05.19"]
[Round "2"]
[White "ChocolateRoses"]
[Black "poummba"]
[Result "1-0"]
[WhiteElo "2257"]
[BlackElo "2440"]
[TimeControl "180+1"]
[EndTime "12:18:42 PDT"]
[Termination "ChocolateRoses won by resignation"]

1. Nf3 {[%clk 0:03:00.9]} 1... g6 {[%clk 0:02:59.4]} 2. g3 {[%clk 0:02:57.1]}
2... Bg7 {[%clk 0:03:00.3]} 3. d4 {[%clk 0:02:57]} 3... d6 {[%clk 0:03:00.5]} 4.
Bg2 {[%clk 0:02:57.5]} 4... Nd7 {[%clk 0:03:00.8]} 5. O-O {[%clk 0:02:57.7]}
5... e5 {[%clk 0:03:01.7]} 6. c4 {[%clk 0:02:54.7]} 6... Ne7 {[%clk 0:03:01.7]}
7. Nc3 {[%clk 0:02:53.6]} 7... O-O {[%clk 0:03:01.9]} 8. e4 {[%clk 0:02:36.6]}
8... exd4 {[%clk 0:03:00.9]} 9. Nxd4 {[%clk 0:02:36.7]} 9... Nc6 {[%clk
0:03:01.8]} 10. Be3 {[%clk 0:02:33.9]} 10... Nde5 {[%clk 0:03:01.9]} 11. c5
{[%clk 0:02:18.7]} 11... Nc4 {[%clk 0:02:25.9]} 12. Nxc6 {[%clk 0:02:15.8]}
12... Nxe3 {[%clk 0:02:23.7]} 13. Nxd8 {[%clk 0:02:15]} 13... Nxd1 {[%clk
0:02:23.5]} 14. Raxd1 {[%clk 0:02:07.6]} 14... Rxd8 {[%clk 0:02:21.8]} 15. cxd6
{[%clk 0:02:04.8]} 15... cxd6 {[%clk 0:02:14.2]} 16. Rd3 {[%clk 0:01:48.2]}
16... Be6 {[%clk 0:02:06.3]} 17. b3 {[%clk 0:01:29.7]} 17... Rac8 {[%clk
0:01:30.9]} 18. Nb5 {[%clk 0:01:25.5]} 18... a6 {[%clk 0:01:30.8]} 19. Nxd6
{[%clk 0:01:10.9]} 19... Rc2 {[%clk 0:01:30.6]} 20. Rfd1 {[%clk 0:01:04.6]}
20... Rxa2 {[%clk 0:01:24]} 21. h4 {[%clk 0:00:59.9]} 21... b5 {[%clk 0:01:11]}
22. f4 {[%clk 0:00:40.2]} 22... Bb2 {[%clk 0:00:49.7]} 23. e5 {[%clk 0:00:38]}
23... Ba3 {[%clk 0:00:47.5]} 24. Ne4 {[%clk 0:00:35.7]} 24... Rf8 {[%clk
0:00:33.2]} 25. Nf6+ {[%clk 0:00:29.4]} 25... Kg7 {[%clk 0:00:33]} 26. Bd5
{[%clk 0:00:26.7]} 26... Bf5 {[%clk 0:00:28.5]} 27. Be4 {[%clk 0:00:25.8]} 27...
Bc5+ {[%clk 0:00:26.5]} 28. Kh1 {[%clk 0:00:26.2]} 28... Bh3 {[%clk 0:00:23.8]}
29. Bf3 {[%clk 0:00:24.2]} 29... h5 {[%clk 0:00:22.2]} 30. Ne4 {[%clk 0:00:24]}
30... Be7 {[%clk 0:00:16.9]} 31. Rd7 {[%clk 0:00:21.6]} 31... Bxd7 {[%clk
0:00:15.6]} 32. Rxd7 {[%clk 0:00:22.5]} 32... Bb4 {[%clk 0:00:13.5]} 33. Ng5
{[%clk 0:00:19.8]} 33... Kg8 {[%clk 0:00:03.8]} 34. Bd5 {[%clk 0:00:18.2]} 34...
Rd2 {[%clk 0:00:04.4]} 35. Bxf7+ {[%clk 0:00:16.1]} 35... Kh8 {[%clk 0:00:03.9]}
36. Rb7 {[%clk 0:00:13.5]} 36... Bc5 {[%clk 0:00:02.4]} 37. Bxg6 {[%clk
0:00:13.1]} 37... Rfd8 {[%clk 0:00:01.6]} 38. Nf7+ {[%clk 0:00:12.8]} 38... Kg8
{[%clk 0:00:02.2]} 39. Nxd8 {[%clk 0:00:13.4]} 39... Rxd8 {[%clk 0:00:02.5]} 40.
Bxh5 {[%clk 0:00:13.7]} 40... Rd3 {[%clk 0:00:02.4]} 41. g4 {[%clk 0:00:11.2]}
41... Rxb3 {[%clk 0:00:02.1]} 42. Bf7+ {[%clk 0:00:10.9]} 1-0

[Event "*** Titled Tuesday Blitz"]
[Site "Chess.com"]
[Date "2020.05.19"]
[Round "2"]
[White "Popopuiyt"]
[Black "Margarita2907"]
[Result "1-0"]
[WhiteElo "2374"]
[BlackElo "2021"]
[TimeControl "180+1"]
[EndTime "12:18:42 PDT"]
[Termination "Popopuiyt won by resignation"]

1. d4 {[%clk 0:03:00.9]} 1... Nf6 {[%clk 0:02:58]} 2. c4 {[%clk 0:03:00.5]} 2...
e6 {[%clk 0:02:56.7]} 3. Nc3 {[%clk 0:03:00.4]} 3... d5 {[%clk 0:02:54.3]} 4.
cxd5 {[%clk 0:03:00.2]} 4... exd5 {[%clk 0:02:53.3]} 5. Bg5 {[%clk 0:03:00.3]}
5... Be7 {[%clk 0:02:51.8]} 6. e3 {[%clk 0:03:00.6]} 6... O-O {[%clk 0:02:52.1]}
7. Bd3 {[%clk 0:03:01]} 7... Nbd7 {[%clk 0:02:50.5]} 8. Nge2 {[%clk 0:03:00.7]}
8... Re8 {[%clk 0:02:50.2]} 9. O-O {[%clk 0:03:01.1]} 9... Nf8 {[%clk 0:02:49]}
10. b4 {[%clk 0:03:01.6]} 10... c6 {[%clk 0:02:46.4]} 11. b5 {[%clk 0:03:00.7]}
11... Ne4 {[%clk 0:02:41.5]} 12. Bxe7 {[%clk 0:02:58.4]} 12... Qxe7 {[%clk
0:02:41.4]} 13. bxc6 {[%clk 0:02:58.6]} 13... bxc6 {[%clk 0:02:40.5]} 14. Qc2
{[%clk 0:02:49.3]} 14... f5 {[%clk 0:02:36.7]} 15. Na4 {[%clk 0:02:47.9]} 15...
Bd7 {[%clk 0:02:31.5]} 16. Rfc1 {[%clk 0:02:44.8]} 16... Ne6 {[%clk 0:02:19.3]}
17. Rab1 {[%clk 0:02:34.7]} 17... Rab8 {[%clk 0:02:15.7]} 18. Rxb8 {[%clk
0:02:09.5]} 18... Rxb8 {[%clk 0:02:14.4]} 19. Bxe4 {[%clk 0:02:10.2]} 19... fxe4
{[%clk 0:02:11.6]} 20. Nc5 {[%clk 0:02:10.2]} 20... Nxc5 {[%clk 0:02:08.8]} 21.
Qxc5 {[%clk 0:02:11.1]} 21... Qxc5 {[%clk 0:02:02.4]} 22. Rxc5 {[%clk 0:02:12]}
22... Rb2 {[%clk 0:01:48.8]} 23. Nc1 {[%clk 0:01:53.4]} 23... Kf7 {[%clk
0:01:41.4]} 24. Kf1 {[%clk 0:01:52.6]} 24... Ke7 {[%clk 0:01:38.4]} 25. Ke1
{[%clk 0:01:52.6]} 25... Kd6 {[%clk 0:01:36.9]} 26. Ra5 {[%clk 0:01:52.7]} 26...
Rb1 {[%clk 0:01:28.3]} 27. Kd1 {[%clk 0:01:52.3]} 27... Rb2 {[%clk 0:01:20.8]}
28. Ke1 {[%clk 0:01:45.2]} 28... Rb1 {[%clk 0:01:19.1]} 29. Rc5 {[%clk
0:01:43.1]} 29... Kc7 {[%clk 0:00:58.8]} 30. Kd2 {[%clk 0:01:40.8]} 30... Rb2+
{[%clk 0:00:57.3]} 31. Rc2 {[%clk 0:01:40.6]} 31... Rb8 {[%clk 0:00:51.6]} 32.
Nb3 {[%clk 0:01:37.4]} 32... Rf8 {[%clk 0:00:48.7]} 33. Kc3 {[%clk 0:01:37.7]}
33... Bg4 {[%clk 0:00:33.5]} 34. Nc5 {[%clk 0:01:36.1]} 34... Bc8 {[%clk
0:00:20.9]} 35. Rb2 {[%clk 0:01:35.6]} 35... Rf6 {[%clk 0:00:16.7]} 36. h4
{[%clk 0:01:33]} 36... Rh6 {[%clk 0:00:16.4]} 37. g3 {[%clk 0:01:33]} 37... Rf6
{[%clk 0:00:16.4]} 38. a3 {[%clk 0:01:16.6]} 38... h6 {[%clk 0:00:14.9]} 39. Kb4
{[%clk 0:01:12.8]} 39... g5 {[%clk 0:00:12.9]} 40. hxg5 {[%clk 0:01:12.2]} 40...
hxg5 {[%clk 0:00:12.8]} 41. Ka5 {[%clk 0:01:12.2]} 41... Rh6 {[%clk 0:00:12.4]}
42. Rc2 {[%clk 0:01:04.1]} 42... Rh1 {[%clk 0:00:10.9]} 43. Na6+ {[%clk
0:01:03.9]} 43... Kd6 {[%clk 0:00:09.5]} 44. Nb4 {[%clk 0:00:58.8]} 44... Bb7
{[%clk 0:00:09.3]} 45. Rb2 {[%clk 0:00:58.5]} 45... Ra1 {[%clk 0:00:09.2]} 46.
a4 {[%clk 0:00:58.8]} 46... Bc8 {[%clk 0:00:08.4]} 47. Rc2 {[%clk 0:00:47.8]}
47... Bb7 {[%clk 0:00:05.7]} 48. Ra2 {[%clk 0:00:45.5]} 48... Bc8 {[%clk
0:00:06]} 49. Rxa1 {[%clk 0:00:44.8]} 1-0

[Event "*** Titled Tuesday Blitz"]
[Site "Chess.com"]
[Date "2020.05.19"]
[Round "2"]
[White "pollo2016"]
[Black "BogdanDeac"]
[Result "0-1"]
[WhiteElo "2571"]
[BlackElo "2989"]
[TimeControl "180+1"]
[EndTime "12:18:43 PDT"]
[Termination "BogdanDeac won on time"]

1. d4 {[%clk 0:03:00.9]} 1... Nf6 {[%clk 0:02:59.7]} 2. c4 {[%clk 0:03:00.7]}
2... e6 {[%clk 0:03:00.3]} 3. Nc3 {[%clk 0:03:00.7]} 3... Bb4 {[%clk 0:02:59.6]}
4. Bg5 {[%clk 0:03:00.3]} 4... c5 {[%clk 0:02:51.7]} 5. d5 {[%clk 0:02:59.7]}
5... exd5 {[%clk 0:02:51.3]} 6. cxd5 {[%clk 0:02:59.3]} 6... d6 {[%clk
0:02:51.5]} 7. e3 {[%clk 0:02:59.4]} 7... Nbd7 {[%clk 0:02:50.5]} 8. Bb5 {[%clk
0:02:59.2]} 8... O-O {[%clk 0:02:41.4]} 9. Bxd7 {[%clk 0:02:56]} 9... Bxd7
{[%clk 0:02:41.4]} 10. Ne2 {[%clk 0:02:56.1]} 10... h6 {[%clk 0:02:28.1]} 11.
Bh4 {[%clk 0:02:53]} 11... g5 {[%clk 0:02:28]} 12. Bg3 {[%clk 0:02:52.7]} 12...
Bb5 {[%clk 0:02:26.7]} 13. Qc2 {[%clk 0:02:31.1]} 13... Bxe2 {[%clk 0:02:10.6]}
14. Kxe2 {[%clk 0:02:30.8]} 14... Qe7 {[%clk 0:01:53.4]} 15. h4 {[%clk
0:02:27.3]} 15... Bxc3 {[%clk 0:01:52.8]} 16. bxc3 {[%clk 0:02:25.2]} 16... Qe4
{[%clk 0:01:52.8]} 17. Qxe4 {[%clk 0:01:54]} 17... Nxe4 {[%clk 0:01:53.7]} 18.
hxg5 {[%clk 0:01:54.2]} 18... hxg5 {[%clk 0:01:52]} 19. Rh6 {[%clk 0:01:51.8]}
19... Kg7 {[%clk 0:01:35.4]} 20. Rah1 {[%clk 0:01:21.3]} 20... Rh8 {[%clk
0:01:34]} 21. Rxh8 {[%clk 0:01:01.4]} 21... Rxh8 {[%clk 0:01:34.9]} 22. Rxh8
{[%clk 0:00:59.7]} 22... Kxh8 {[%clk 0:01:35.3]} 23. c4 {[%clk 0:00:29.3]} 23...
Nxg3+ {[%clk 0:01:34]} 24. fxg3 {[%clk 0:00:29.3]} 24... Kg7 {[%clk 0:01:34.6]}
25. Kf3 {[%clk 0:00:29.4]} 25... Kf6 {[%clk 0:01:14.8]} 26. Ke4 {[%clk
0:00:28.9]} 26... a6 {[%clk 0:00:58.7]} 27. a4 {[%clk 0:00:28.1]} 27... b6
{[%clk 0:00:58.6]} 28. g4 {[%clk 0:00:28.5]} 28... Kg6 {[%clk 0:00:58.6]} 29.
Kd3 {[%clk 0:00:25.9]} 29... Kg7 {[%clk 0:00:57.6]} 30. Ke4 {[%clk 0:00:19.8]}
30... Kf6 {[%clk 0:00:57]} 31. g3 {[%clk 0:00:14.4]} 31... Kg6 {[%clk
0:00:53.2]} 32. Kd3 {[%clk 0:00:14.1]} 32... Kg7 {[%clk 0:00:53.1]} 33. Ke4
{[%clk 0:00:13.9]} 33... Kf6 {[%clk 0:00:52.7]} 34. Kd3 {[%clk 0:00:13.4]} 34...
Ke7 {[%clk 0:00:40.2]} 35. Ke4 {[%clk 0:00:12.7]} 35... Kd7 {[%clk 0:00:32.1]}
36. Kf5 {[%clk 0:00:12.5]} 36... b5 {[%clk 0:00:29.3]} 37. cxb5 {[%clk
0:00:03.3]} 37... axb5 {[%clk 0:00:30.2]} 38. axb5 {[%clk 0:00:02.8]} 38... Kc7
{[%clk 0:00:29.3]} 39. e4 {[%clk 0:00:03.2]} 39... c4 {[%clk 0:00:29.1]} 40. e5
{[%clk 0:00:03.6]} 40... c3 {[%clk 0:00:26.8]} 41. e6 {[%clk 0:00:04.1]} 41...
fxe6+ {[%clk 0:00:24]} 42. dxe6 {[%clk 0:00:05]} 42... c2 {[%clk 0:00:24.2]} 43.
e7 {[%clk 0:00:05]} 43... Kd7 {[%clk 0:00:24.3]} 0-1

[Event "*** Titled Tuesday Blitz"]
[Site "Chess.com"]
[Date "2020.05.19"]
[Round "2"]
[White "Mizner"]
[Black "Fandorine"]
[Result "0-1"]
[WhiteElo "2548"]
[BlackElo "2883"]
[TimeControl "180+1"]
[EndTime "12:18:43 PDT"]
[Termination "Fandorine won on time"]

1. d4 {[%clk 0:03:00.9]} 1... Nf6 {[%clk 0:02:59.8]} 2. c4 {[%clk 0:03:01]} 2...
g6 {[%clk 0:03:00.3]} 3. g3 {[%clk 0:03:01.4]} 3... Bg7 {[%clk 0:03:00.3]} 4.
Bg2 {[%clk 0:03:01.8]} 4... O-O {[%clk 0:03:00.9]} 5. Nc3 {[%clk 0:03:02]} 5...
d6 {[%clk 0:03:01.2]} 6. Nf3 {[%clk 0:03:02.3]} 6... Nc6 {[%clk 0:03:01.6]} 7.
d5 {[%clk 0:03:02.7]} 7... Na5 {[%clk 0:03:01.4]} 8. b3 {[%clk 0:03:03.2]} 8...
a6 {[%clk 0:02:57.3]} 9. Bb2 {[%clk 0:03:01.4]} 9... c5 {[%clk 0:02:54.7]} 10.
O-O {[%clk 0:02:57.2]} 10... b5 {[%clk 0:02:45.5]} 11. cxb5 {[%clk 0:02:43.2]}
11... axb5 {[%clk 0:02:46.4]} 12. Nxb5 {[%clk 0:02:43.6]} 12... Qb6 {[%clk
0:02:46]} 13. Nc3 {[%clk 0:02:28.5]} 13... Nc4 {[%clk 0:02:23.3]} 14. Bc1 {[%clk
0:02:08.8]} 14... Qb4 {[%clk 0:01:53.9]} 15. Qd3 {[%clk 0:01:07.2]} 15... Ng4
{[%clk 0:01:43.7]} 16. bxc4 {[%clk 0:00:36.2]} 16... Qxc3 {[%clk 0:01:43.3]} 17.
Rb1 {[%clk 0:00:10.7]} 17... Qxd3 {[%clk 0:01:04.3]} 18. exd3 {[%clk 0:00:11.6]}
18... Bf5 {[%clk 0:01:04.8]} 19. Rb3 {[%clk 0:00:10.3]} 19... Rxa2 {[%clk
0:01:03.8]} 20. h3 {[%clk 0:00:09.6]} 20... Ne5 {[%clk 0:01:02.5]} 21. Nxe5
{[%clk 0:00:08.2]} 21... Bxe5 {[%clk 0:01:03.4]} 22. Bg5 {[%clk 0:00:05]} 22...
Re8 {[%clk 0:00:43.2]} 23. Rfb1 {[%clk 0:00:04]} 23... Bd4 {[%clk 0:00:36.6]}
24. Be3 {[%clk 0:00:03.1]} 24... Bxe3 {[%clk 0:00:27.9]} 25. fxe3 {[%clk
0:00:04]} 25... h5 {[%clk 0:00:22.9]} 26. Be4 {[%clk 0:00:02.7]} 26... Bxh3
{[%clk 0:00:21.7]} 27. R3b2 {[%clk 0:00:01.1]} 27... Rxb2 {[%clk 0:00:20.5]} 28.
Rxb2 {[%clk 0:00:02]} 28... Kg7 {[%clk 0:00:20.8]} 29. d4 {[%clk 0:00:02.5]}
29... Rc8 {[%clk 0:00:20.3]} 30. dxc5 {[%clk 0:00:02]} 30... Rxc5 {[%clk
0:00:21.2]} 31. Bd3 {[%clk 0:00:02.3]} 31... Bc8 {[%clk 0:00:19.6]} 32. Kf2
{[%clk 0:00:02.5]} 32... Ba6 {[%clk 0:00:19.4]} 33. Rb4 {[%clk 0:00:03]} 33...
Kf6 {[%clk 0:00:19.2]} 34. e4 {[%clk 0:00:03.4]} 34... Bc8 {[%clk 0:00:18.6]}
35. Ke3 {[%clk 0:00:03.9]} 35... g5 {[%clk 0:00:17.7]} 36. Kd4 {[%clk
0:00:03.7]} 36... Ra5 {[%clk 0:00:08.6]} 37. Rb8 {[%clk 0:00:03.2]} 37... Bg4
{[%clk 0:00:08.1]} 38. Rh8 {[%clk 0:00:03.2]} 38... Ra1 {[%clk 0:00:06.9]} 0-1